[Event "German Bundesliga 2023-24"]
[Site "Germany"]
[Date "2024.02.25"]
[Round "11.15"]
[White "Bogner, Sebastian"]
[Black "Grigorian, Spartak"]
[Result "1/2-1/2"]
[ECO "D45"]
[WhiteElo "2536"]
[BlackElo "2439"]
[Annotator "TA"]
[PlyCount "96"]
[EventDate "2023.10.20"]
[EventType "team-tourn"]
[EventCountry "GER"]
[SourceTitle "playchess.com"]
[Source "ChessBase"]
[SourceQuality "1"]
[TimeControl "40/6000+30:3000+30"]

{[%evp 29,96,45,57,54,68,58,57,20,26,21,81,27,29,15,23,13,14,17,20,0,0,0,0,0,0,0,5,6,153,130,154,131,162,154,176,184,175,0,0,0,0,0,0,0,0,0,0,0,0,0,0,0,0,0,31,27,26,0,0,0,0,0,0,0,0,0,0,0,0]} 1. Nf3 {[%emt 0:00:04]} d5 {[%emt 0:00:10]} 2. d4 {[%emt 0:01:17]} Nf6 {[%emt 0:00:07]} 3. c4 {[%emt 0:00:04]} c6 {[%emt 0:00:27]} 4. Nc3 {[%emt 0:00:13]} e6 {[%emt 0:04:52]} 5. e3 {[%emt 0:01:21]} a6 {[%emt 0:00:11]} 6. h3 {[%emt 0:00:04] D45: Semi-Slav: 5 e3.} c5 {[%emt 0:05:13]} 7. cxd5 {[%emt 0:04:18]} exd5 {[%emt 0:00:09]} 8. b3 {[%emt 0:10:14]} cxd4 {[%emt 0:15:25]} 9. Nxd4 {[%emt 0:00:32]} Bb4 {[%emt 0:00:04]} 10. Bd2 $146 {[%emt 0:05:35]} ({Predecessor:} 10. Bb2 Ne4 11. Qc2 Qa5 12. Nde2 O-O 13. a3 Bxc3+ 14. Nxc3 Nf6 15. b4 Qc7 16. Bd3 {1-0 Ivanchuk,V (2679)-Nisipeanu,L (2656) Zagreb Peace 2019 (3)}) 10... O-O {[%emt 0:06:46]} 11. Bd3 {[%emt 0:00:27]} Nc6 {[%emt 0:01:25]} 12. Nxc6 {[%emt 0:11:28]} bxc6 {[%emt 0:00:01]} 13. O-O {[%emt 0:01:20]} a5 {[%emt 0:31:58]} 14. Na4 {[%emt 0:04:49]} Ba6 {[%emt 0:06:50]} 15. Bxa6 {[%emt 0:02:23]} Rxa6 {[%emt 0:00:58]} 16. Rc1 {[%emt 0:08:38]} Qd6 {[%emt 0:07:48]} 17. Rc2 {[%emt 0:02:20]} Ne4 {[%emt 0:04:33]} 18. Bxb4 {[%emt 0:04:39]} axb4 {[%emt 0:00:07]} 19. Qd4 {[%emt 0:00:04]} Ng5 {[%emt 0:03:06]} (19... h6 $11) 20. Rfc1 {[%emt 0:00:26]} (20. Nc5 $16 Ne6 21. Qxb4) 20... Ne6 $11 {[%emt 0:01:40]} 21. Qd2 {[%emt 0:03:04]} Rfa8 {[%emt 0:03:52]} 22. h4 {[%emt 0:15:35]} h5 {[%emt 0:02:14]} 23. g3 {[%emt 0:03:44]} g6 {[%emt 0:00:10]} 24. e4 {[%emt 0:02:01]} Qe5 {[%emt 0:02:16]} 25. Qe3 {[%emt 0:09:50]} dxe4 {[%emt 0:01:42]} 26. Rc4 {[%emt 0:00:19]} f5 {[%emt 0:03:25]} 27. Rxb4 {[%emt 0:01:30]} Rd8 {[%emt 0:00:52]} 28. Kg2 {[%emt 0:04:34]} Rd3 {[%emt 0:02:26]} (28... Qf6 $11) 29. Qh6 $16 {[%emt 0:00:39]} Nf8 {[%emt 0:03:56] [#]} 30. Rb7 $1 {[%emt 0:02:43]} (30. Nc5 $2 Rxg3+ 31. Kf1 (31. fxg3 Rxa2+ 32. Kh3 Qb2) 31... Rh3 32. Nxa6 e3 $19 (32... Rxh4 33. Rxc6 Qa1+ 34. Ke2 $18) (32... Rh1+ 33. Ke2 $17) (32... Rxh4 $2 33. Rxc6 Rh1+ 34. Ke2 $18) (32... Rh1+ 33. Ke2 $17)) 30... e3 {[%emt 0:00:57]} 31. Re1 {[%emt 0:01:26]} (31. Nc5 Rd2 32. Kh3 Qd4 $11 (32... Raxa2 33. Ne6 Nd7 34. Rxd7) (32... Raxa2 33. Ne6 Nd7 34. Rxd7)) 31... Qd5+ {[%emt 0:01:44]} 32. Kh2 {[%emt 0:00:33]} Qd4 {[%emt 0:00:08] [#]} 33. Nc5 $2 {[%emt 0:05:47]} (33. fxe3 Rd2+ 34. Kg1 Qe5 $17) (33. Rb8 $1 $18 {[%csl Gh6][%cal Rb8f8][%mdl 512]} Qd6 34. Rxf8+ (34. Rb7 Qd4 $18) 34... Qxf8 35. Qxf8+ (35. Qxg6+ Kh8 $16) 35... Kxf8 36. Nc5 exf2 37. Rf1 (37. Nxd3 $2 fxe1=Q 38. Nxe1 Rxa2+ 39. Kh3 Re2 $19) 37... Rxg3 38. Kxg3 (38. Nxa6 Rg4 $18)) 33... exf2 $11 {[%emt 0:00:55]} (33... Qxc5 34. Qg7#) 34. Rf1 {[%emt 0:00:01]} (34. Nxa6 fxe1=Q (34... fxe1=B $2 35. Rg7+ Qxg7 36. Qxg7+ Kxg7 37. Nc5 $19) (34... fxe1=B $2 35. Qg7+ Qxg7 36. Rxg7+ Kxg7 37. Nc5 $19)) 34... Rxg3 $1 {[%emt 0:00:32]} 35. Qxf8+ Kxf8 {[%emt 0:00:01]} 36. Ne6+ {[%emt 0:04:43]} (36. Nxa6 $2 Qxh4#) 36... Ke8 {[%emt 0:00:05]} 37. Nxd4 {[%emt 0:00:05]} Rg4 {[%emt 0:00:03]} 38. Nf3 {[%emt 0:02:05]} Rxa2 {[%emt 0:00:01]} 39. Rc7 {[%emt 0:00:30]} Rf4 {[%emt 0:01:28]} 40. Kg2 {[%emt 0:00:28]} Rg4+ {[%emt 0:00:11]} 41. Kh3 {[%emt 0:07:50]} f4 {[%emt 0:03:42]} 42. Kh2 $1 {[%emt 0:00:38]} Rg3 {[%emt 0:07:06]} 43. Ne5 {[%emt 0:00:48]} Re3 {[%emt 0:24:46]} ({Don't play} 43... Rxb3 $6 44. Rc8+ (44. Nxg6 $2 {perishes.} Rb1 $19) (44. Rxc6 g5 $14) 44... Ke7 45. Nxg6+ Ke6 46. Nxf4+ (46. Rxc6+ Kf5 $11) 46... Ke5 47. Nh3 $16 (47. Nxh5 Ra4 $14)) 44. Rc8+ {[%emt 0:01:35]} Ke7 {[%emt 0:00:05]} 45. Nxg6+ {[%emt 0:00:47]} Kd7 {[%emt 0:00:04]} 46. Rf8 $1 {[%emt 0:00:08]} Re1 $1 {[%emt 0:00:14]} 47. Kg2 {[%emt 0:00:16]} Raa1 $1 {[%emt 0:00:15]} 48. Rxf2 {[%emt 0:06:43]} Rg1+ {[%emt 0:01:07]} 1/2-1/2

[Event "German Bundesliga 2023-24"]
[Site "Germany"]
[Date "2024.02.25"]
[Round "11.16"]
[White "Reuker, Jari"]
[Black "Bischoff, Klaus"]
[Result "1/2-1/2"]
[ECO "A40"]
[WhiteElo "2403"]
[BlackElo "2455"]
[Annotator "TA"]
[PlyCount "85"]
[EventDate "2023.10.20"]
[EventType "team-tourn"]
[EventCountry "GER"]
[SourceTitle "playchess.com"]
[Source "ChessBase"]
[SourceQuality "1"]
[TimeControl "40/6000+30:3000+30"]

{[%evp 24,85,93,87,86,-148,-150,-179,-177,-145,-151,-163,-91,-94,-98,-89,-97,-81,-38,-44,-40,-34,0,0,0,0,0,-39,-54,-43,-67,-45,26,21,33,18,80,103,114,113,430,187,204,204,390,93,2220,2220,2097,2097,1411,0,0,0,0,0,0,0,0,0,0,0,0,0]} 1. d4 {[%emt 0:00:04]} e6 {[%emt 0:00:09]} 2. c4 {[%emt 0:00:10]} Bb4+ {[%emt 0:00:31]} 3. Bd2 {[%emt 0:00:09]} Bxd2+ {[%emt 0:00:24]} 4. Qxd2 {[%emt 0:00:09]} Nf6 {[%emt 0:00:09]} 5. Nc3 {[%emt 0:00:36]} d5 {[%emt 0:01:44]} 6. e3 {[%emt 0:00:35] A40: Unusual replies to 1 d4.} O-O {[%emt 0:00:37]} 7. cxd5 {[%emt 0:01:27]} Nxd5 {[%emt 0:01:47]} 8. Nf3 {[%emt 0:04:23]} c6 $146 {[%emt 0:05:21]} ({Predecessor:} 8... Nc6 9. Rc1 Re8 10. e4 Nxc3 11. Qxc3 Qe7 12. Bb5 Bd7 13. O-O Ne5 14. Nxe5 Bxb5 15. Rfe1 Rac8 16. a4 Bxa4 17. Qa5 f6 18. Qxa4 {½-½ Wiersma,E (2353)-Vedder,H (2372) NED-chT 1314 2013 (5.7)}) 9. Bd3 {[%emt 0:03:46]} b6 {[%emt 0:01:04]} 10. h4 {[%emt 0:19:18]} Nd7 {[%emt 0:04:29]} 11. Ne4 {[%emt 0:23:43]} N7f6 {[%emt 0:06:18]} 12. Neg5 {[%emt 0:04:01]} h6 {[%emt 0:10:22]} 13. e4 $1 {[%emt 0:10:06]} Ne7 {[%emt 0:03:45] [#]} 14. Qf4 $2 {[%emt 0:04:51]} (14. e5 $1 $16 {[%cal Re5f6] keeps the pressure on.} Nfd5 15. Ne4) 14... Ng6 $1 $17 {[%emt 0:03:34]} (14... hxg5 $2 15. hxg5 $18) 15. Qh2 {[%emt 0:08:07]} e5 {[%emt 0:00:48]} (15... hxg5 $2 16. hxg5 Re8 17. Ne5 $18 (17. gxf6 Qxf6 18. e5 Qf4 $18) (17. gxf6 Qxf6 18. e5 Qf4 $18)) 16. O-O-O {[%emt 0:07:20]} Ng4 {[%emt 0:01:46]} (16... hxg5 17. hxg5 (17. Nxe5 $2 Qxd4 18. Nxg6 fxg6 $19) 17... Re8 18. Nxe5 (18. gxf6 Qxf6 19. Nxe5 Qf4+ 20. Kc2 Qxh2 $16) 18... Rxe5 19. gxf6 (19. dxe5 Ng4 $18) 19... Qxf6 20. dxe5 Qg5+ 21. Kb1 $18) 17. Qg3 {[%emt 0:00:12]} Qf6 {[%emt 0:02:17]} (17... hxg5 $19 18. hxg5 Re8 (18... exd4 19. e5 $17) 19. Nxe5 Rxe5 (19... N6xe5 20. dxe5 Qd4 21. g6 $17) (19... Qxg5+ $2 20. Kb1 $19) 20. dxe5 Qxg5+ 21. Kb1 Qxe5 (21... N6xe5 $2 22. f4 $18) 22. Qxe5 N4xe5) 18. Nh3 $17 {[%emt 0:02:52]} exd4 {[%emt 0:03:51]} 19. h5 {[%emt 0:03:49]} N6e5 {[%emt 0:01:11]} 20. Nxd4 {[%emt 0:00:41]} c5 {[%emt 0:11:20]} 21. Nb5 {[%emt 0:02:44]} Nxd3+ {[%emt 0:10:43]} 22. Rxd3 {[%emt 0:00:19]} Ne5 {[%emt 0:04:36]} 23. Rd6 {[%emt 0:01:04]} Be6 {[%emt 0:02:10]} 24. Qc3 $1 {[%emt 0:06:09]} c4 {[%emt 0:02:14]} 25. Kb1 {[%emt 0:02:12]} Rad8 {[%emt 0:02:41]} 26. Rhd1 {[%emt 0:00:36]} Rxd6 {[%emt 0:00:12]} 27. Rxd6 {[%emt 0:00:06]} Ng4 {[%emt 0:00:24]} ({Black should try} 27... Rd8 $15 28. Rxd8+ Qxd8) 28. f3 $11 {[%emt 0:01:03]} Qe7 $1 {[%emt 0:03:29]} 29. Qd4 {[%emt 0:02:00]} Nf6 {[%emt 0:03:37]} (29... Nh2 $1 $11) 30. Nf4 $16 {[%emt 0:00:04]} Bc8 {[%emt 0:00:31]} 31. a4 {[%emt 0:01:37]} (31. Qxc4 Ba6 32. Rd2 (32. Ng6 $2 Qxd6 33. Nxd6 Bxc4 $19) 32... Nxe4 33. Qxe4 (33. fxe4 Qg5 $17) 33... Qxe4+ 34. fxe4 Bxb5 $11) 31... Nd7 $2 {[%emt 0:02:46][%mdl 8192]} (31... Bd7 $16) 32. Nxa7 {[%emt 0:00:48]} (32. Nd5 $142 Qg5 33. Nxa7) 32... Nc5 $18 {[%emt 0:00:22]} 33. Nc6 {[%emt 0:00:56]} (33. Rxb6 $6 Qxa7 34. Rc6 (34. Qxc5 Qxa4 35. Qd6 Re8 $16) 34... c3 35. Rxc5 (35. Qxc5 Qxa4 36. Qxc3 Be6 $14) 35... cxb2 $16) 33... Qh4 $2 {[%emt 0:00:27] [#]} (33... Qg5 {was worth a try.}) 34. Rd8 $2 {[%emt 0:00:55]} (34. Nd5 Be6 $16) (34. Ng6 $1 $18 {[%cal Rg6h4] is the precise move to win.} fxg6 35. Qd5+ (35. Qxc4+ Be6 $18) 35... Kh7 (35... Kh8 $2 36. Ne5 $18) 36. hxg6+ Kh8 37. Ne5) 34... Bd7 $2 {[%emt 0:00:52][%mdl 8192]} (34... Rxd8 $16 35. Qxd8+ Qxd8 36. Nxd8 Nxa4) 35. Rxf8+ $18 {[%emt 0:00:04]} (35. Rxd7 Nxd7 36. Nd5 Qh1+ 37. Ka2 Qxg2 38. Nce7+ (38. Nxb6 $2 Nxb6 39. Qxb6 c3 $19) (38. Nde7+ $2 Kh7 $19) 38... Kh8 $19) 35... Kxf8 {[%emt 0:00:02]} 36. Qd6+ {[%emt 0:00:21]} Kg8 {[%emt 0:00:08] [#]} 37. Ne7+ $2 {[%emt 0:00:34]} (37. Ng6 $1 $18 {White threatens Qf8+ and mate.} fxg6 38. hxg6 (38. Ne7+ Kf7 $18)) 37... Kh7 $11 {[%emt 0:00:10]} 38. Ka2 {[%emt 0:00:52]} c3 $1 {[%emt 0:00:50]} 39. Nfg6 $1 {[%emt 0:00:36]} (39. bxc3 $2 {loses.} Qf2+ 40. Ka3 Qc2 41. Qxb6 Nxa4 $19) 39... Qf2 {[%emt 0:00:41]} 40. Nf8+ {[%emt 0:00:24]} Kh8 {[%emt 0:00:01]} 41. Nfg6+ {[%emt 0:12:58]} Kh7 $1 {[%emt 0:01:18]} 42. Nf8+ {[%emt 0:00:28]} Kh8 {[%emt 0:00:07]} 43. Nfg6+ {[%emt 0:11:23]} 1/2-1/2

[Event "German Bundesliga 2023-24"]
[Site "Germany"]
[Date "2024.02.25"]
[Round "11.17"]
[White "Anand, Viswanathan"]
[Black "Bluebaum, Matthias"]
[Result "1/2-1/2"]
[ECO "C77"]
[WhiteElo "2748"]
[BlackElo "2668"]
[Annotator "TA"]
[PlyCount "60"]
[EventDate "2023.10.20"]
[EventType "team-tourn"]
[EventCountry "GER"]
[SourceTitle "playchess.com"]
[Source "ChessBase"]
[SourceQuality "1"]
[TimeControl "40/6000+30:3000+30"]

{[%evp 17,60,9,21,11,22,0,0,0,0,0,0,0,-10,0,0,0,3,0,3,0,18,0,-7,0,0,0,-13,0,11,0,0,0,0,0,0,0,0,0,0,0,0,0,0,0,3]} 1. e4 {[%emt 0:00:03]} e5 {[%emt 0:00:11]} 2. Nf3 {[%emt 0:00:09]} Nc6 {[%emt 0:00:10]} 3. Bb5 {[%emt 0:00:13][%cal Bf1b5,Bb5a4,Ba4b3][%mdl 32]} a6 {[%emt 0:00:11]} 4. Ba4 {[%emt 0:00:06]} Nf6 {[%emt 0:00:04]} 5. d3 {[%emt 0:01:32]} Bc5 {[%emt 0:00:43]} 6. c3 {[%emt 0:01:33]} b5 {[%emt 0:00:35]} 7. Bb3 {[%emt 0:00:22]} d5 {[%emt 0:01:00]} 8. exd5 {[%emt 0:01:17]} Nxd5 {[%emt 0:00:41]} 9. O-O {[%emt 0:01:20]} O-O {[%emt 0:04:31] The position is equal.} 10. Nbd2 {[%emt 0:02:06]} f6 {[%emt 0:01:07]} 11. a4 {[%emt 0:07:27] [#] Strongly threatening axb5.} Ba7 {[%emt 0:01:09]} 12. Ne4 {[%emt 0:03:04]} Kh8 {[%emt 0:12:10]} 13. d4 {[%emt 0:09:22]} exd4 {[%emt 0:03:51]} 14. Nxd4 {[%emt 0:00:56]} Nxd4 {[%emt 0:05:22]} 15. cxd4 {[%emt 0:00:36]} bxa4 {[%emt 0:06:25]} 16. Bxa4 {[%emt 0:04:37]} Rb8 {[%emt 0:06:10]} 17. Nc5 {[%emt 0:05:39]} Qd6 {[%emt 0:03:37]} 18. Bb3 {[%emt 0:05:37]} Ne7 {[%emt 0:03:25][%cal Oe7f5]} 19. Bc4 {[%emt 0:02:07]} Bxc5 {[%emt 0:05:28]} 20. dxc5 {[%emt 0:00:10]} Qxc5 {[%emt 0:00:04]} 21. Bxa6 {[%emt 0:05:23]} Bxa6 {[%emt 0:00:18]} 22. Rxa6 {[%emt 0:00:04]} Ng6 {[%emt 0:02:15]} 23. Ra3 {[%emt 0:01:52]} Rfd8 {[%emt 0:00:41]} 24. Qe2 {[%emt 0:00:27]} Re8 {[%emt 0:01:22]} 25. Re3 {[%emt 0:01:01]} Rxe3 {[%emt 0:01:49]} 26. Bxe3 {[%emt 0:00:39]} Qb5 {[%emt 0:01:24]} 27. Qxb5 {[%emt 0:00:09]} Rxb5 {[%emt 0:00:03]} 28. Rc1 {[%emt 0:00:09]} Rxb2 {[%emt 0:00:06]} 29. Rxc7 {[%emt 0:00:04] [#] White wants to mate with Rc8+.} Rb1+ {[%emt 0:00:04]} 30. Rc1 {[%emt 0:00:09]} Rxc1+ {[%emt 0:00:03] A rather calm draw.   Weighted Error Value: White=0.04 (flawless) /Black=0.01 (flawless) .  OK:         	White=4     	Black=13} 1/2-1/2

[Event "German Bundesliga 2023-24"]
[Site "Germany"]
[Date "2024.02.25"]
[Round "11.18"]
[White "Kollars, Dmitrij"]
[Black "Rapport, Richard"]
[Result "1/2-1/2"]
[ECO "B52"]
[WhiteElo "2633"]
[BlackElo "2717"]
[Annotator "TA"]
[PlyCount "68"]
[EventDate "2023.10.20"]
[EventType "team-tourn"]
[EventCountry "GER"]
[SourceTitle "playchess.com"]
[Source "ChessBase"]
[SourceQuality "1"]
[TimeControl "40/6000+30:3000+30"]

{[%evp 16,68,8,14,10,12,6,0,0,0,0,0,8,-9,-14,-12,0,-28,-13,-21,-24,-38,0,-13,-3,-9,-8,-7,0,-5,0,-4,-5,-8,0,0,0,-1,-1,-1,0,-5,-6,-2,-10,-2,-2,-6,-6,-4,-4,-3,-5,-10,0]} 1. e4 {[%emt 0:00:12]} c5 {[%emt 0:00:23]} 2. Nf3 {[%emt 0:00:21]} d6 {[%emt 0:00:10]} 3. Bb5+ {[%emt 0:01:12]} Bd7 {[%emt 0:02:24]} 4. Bxd7+ {[%emt 0:00:33]} Nxd7 {[%emt 0:00:21]} 5. O-O {[%emt 0:01:46]} e6 {[%emt 0:00:19]} 6. c3 {[%emt 0:04:49]} Ngf6 {[%emt 0:00:57]} 7. Qe2 {[%emt 0:00:22]} Be7 {[%emt 0:00:24]} 8. d4 {[%emt 0:00:35]} O-O {[%emt 0:00:13]} 9. Rd1 {[%emt 0:08:26]} cxd4 {[%emt 0:05:38]} 10. cxd4 {[%emt 0:00:38]} b5 {[%emt 0:00:07]} 11. a3 {[%emt 0:13:20][%cal Ob1c3]} a5 {[%emt 0:18:30]} 12. Bg5 {[%emt 0:12:27]} h6 {[%emt 0:07:00]} 13. Bh4 {[%emt 0:00:54]} Rb8 {[%emt 0:05:48]} 14. a4 {[%emt 0:03:54]} bxa4 {[%emt 0:02:34]} 15. Rxa4 {[%emt 0:00:37]} d5 {[%emt 0:18:46]} 16. exd5 {[%emt 0:06:12]} Nxd5 {[%emt 0:02:25]} 17. Bxe7 {[%emt 0:00:22]} Nxe7 {[%emt 0:03:21]} 18. Nc3 {[%emt 0:00:38]} Qb6 {[%emt 0:00:49]} 19. d5 {[%emt 0:08:48] The position is equal.} Nxd5 {[%emt 0:01:51]} ({Don't play} 19... Qxb2 $6 20. Qxb2 (20. dxe6 Qxe2 21. Nxe2 fxe6 $14) 20... Rxb2 21. dxe6 $14 (21. Rxa5 Nxd5 22. Nxd5 exd5 $11)) 20. Nxd5 {[%emt 0:00:06]} exd5 {[%emt 0:00:04]} 21. Rxd5 {[%emt 0:00:28]} Rfe8 {[%emt 0:05:57]} 22. Qf1 {[%emt 0:04:37]} Nc5 {[%emt 0:00:56]} 23. Rc4 {[%emt 0:02:10]} Ne4 {[%emt 0:00:44]} 24. Rdd4 {[%emt 0:03:46]} Nf6 {[%emt 0:04:14]} 25. Rc2 {[%emt 0:02:43]} Rbc8 {[%emt 0:00:23]} 26. Rxc8 {[%emt 0:05:15]} Rxc8 {[%emt 0:01:08]} 27. Qb1 {[%emt 0:00:05]} Qb3 {[%emt 0:05:51]} 28. h3 {[%emt 0:02:03]} g6 {[%emt 0:02:43]} 29. Qd1 {[%emt 0:02:06]} Qxd1+ {[%emt 0:02:05]} 30. Rxd1 {[%emt 0:00:04]} Rc2 {[%emt 0:00:08]} 31. Rd2 {[%emt 0:01:04]} Rc1+ {[%emt 0:03:40]} 32. Kh2 {[%emt 0:00:05]} Ne4 {[%emt 0:00:20]} 33. Re2 {[%emt 0:00:58]} Nc5 {[%emt 0:03:26]} 34. Ne5 {[%emt 0:02:08]} a4 {[%emt 0:03:14] An uneventful encounter.   Weighted Error Value: White=0.04 (flawless) /Black=0.03 (flawless) .  Inaccurate:     	White=1     	---        OK:         	White=8     	Black=12     Best:        	White=1     	Black=1} 1/2-1/2

[Event "German Bundesliga 2023-24"]
[Site "Germany"]
[Date "2024.02.25"]
[Round "11.19"]
[White "Aronian, Levon"]
[Black "Kamsky, Gata"]
[Result "1/2-1/2"]
[ECO "B04"]
[WhiteElo "2725"]
[BlackElo "2634"]
[Annotator "TA"]
[PlyCount "61"]
[EventDate "2023.10.20"]
[EventType "team-tourn"]
[EventCountry "GER"]
[SourceTitle "playchess.com"]
[Source "ChessBase"]
[SourceQuality "1"]
[TimeControl "40/6000+30:3000+30"]

{[%evp 14,61,34,33,23,22,54,25,54,22,37,17,39,30,49,17,41,47,57,59,56,43,58,27,22,15,55,54,45,34,39,55,96,0,0,0,0,0,3,0,0,0,0,0,4,0,0,0,0,0]} 1. e4 {[%emt 0:00:03][%cal Be2e4,Be4e5][%mdl 32]} Nf6 {[%emt 0:07:21]} 2. e5 {[%emt 0:00:05]} Nd5 {[%emt 0:00:04]} 3. d4 {[%emt 0:00:14]} d6 {[%emt 0:00:06]} 4. Nf3 {[%emt 0:00:15]} g6 {[%emt 0:08:43]} 5. Bc4 {[%emt 0:00:32]} c6 {[%emt 0:00:06]} 6. O-O {[%emt 0:01:16]} Bg7 {[%emt 0:00:05]} 7. h3 {[%emt 0:07:41]} O-O {[%emt 0:00:11]} 8. Re1 {[%emt 0:00:28]} dxe5 {[%emt 0:08:48]} 9. Nxe5 {[%emt 0:00:10]} Be6 {[%emt 0:03:31]} 10. Nd2 {[%emt 0:05:06][%cal Bb1d2,Bd2f3,Bf3e5][%mdl 32]} Nd7 {[%emt 0:03:13] White has an edge.} 11. Nxd7 {[%emt 0:00:47]} Qxd7 {[%emt 0:00:29]} 12. c3 {[%emt 0:01:39]} Nc7 {[%emt 0:06:55]} 13. Bf1 {[%emt 0:04:57]} Rad8 {[%emt 0:01:41]} 14. Qa4 {[%emt 0:01:21]} a6 {[%emt 0:04:10]} 15. Nf3 {[%emt 0:01:30]} Bd5 {[%emt 0:03:39]} 16. Ne5 {[%emt 0:01:45]} Qc8 {[%emt 0:00:11]} 17. Nd3 {[%emt 0:01:43]} Rfe8 {[%emt 0:01:37]} 18. b3 {[%emt 0:07:34]} Ne6 {[%emt 0:09:25]} 19. Qa5 {[%emt 0:02:36]} Qb8 {[%emt 0:09:57]} 20. Bb2 {[%emt 0:03:34]} b6 {[%emt 0:22:20]} 21. Qa3 {[%emt 0:02:27][%cal Oc3c4]} a5 {[%emt 0:03:01]} 22. Rad1 {[%emt 0:03:34]} Nf4 {[%emt 0:02:02] [#]} 23. c4 {[%emt 0:00:57]} ({Stronger than} 23. Rxe7 Bf8 24. Rxe8 Rxe8 $17) ({White should play} 23. Nxf4 $1 $16 Qxf4 24. Rxe7) 23... Nxd3 $11 {[%emt 0:00:38] The position is equal.} 24. Bxd3 {[%emt 0:00:04]} Be6 {[%emt 0:00:06]} 25. Be4 {[%emt 0:00:03]} Qc7 {[%emt 0:01:03]} 26. d5 {[%emt 0:00:40]} Bxb2 {[%emt 0:00:24]} 27. Qxb2 {[%emt 0:00:06]} cxd5 {[%emt 0:00:19]} 28. cxd5 {[%emt 0:00:21]} Bd7 {[%emt 0:01:05]} 29. Bf3 {[%emt 0:00:55][%cal Oe1e7]} Qd6 {[%emt 0:00:07]} 30. Rd4 {[%emt 0:03:40]} Qf6 {[%emt 0:01:55][%cal Od7h3]} 31. Re3 {[%emt 0:02:14] Weighted Error Value: White=0.12 (very precise) /Black=0.08 (flawless) .  Mistake:       	White=1     	---        Inaccurate:     	White=4     	Black=3      OK:         	White=10    	Black=11     Best:        	---       	Black=1} 1/2-1/2

[Event "German Bundesliga 2023-24"]
[Site "Germany"]
[Date "2024.02.25"]
[Round "11.20"]
[White "Gustafsson, Jan"]
[Black "Vachier-Lagrave, Maxime"]
[Result "1/2-1/2"]
[ECO "D60"]
[WhiteElo "2620"]
[BlackElo "2734"]
[Annotator "TA"]
[PlyCount "33"]
[EventDate "2023.10.20"]
[EventType "team-tourn"]
[EventCountry "GER"]
[SourceTitle "playchess.com"]
[Source "ChessBase"]
[SourceQuality "1"]
[TimeControl "40/6000+30:3000+30"]

{[%evp 15,33,0,10,8,7,8,11,16,11,10,10,9,13,0,7,0,12,0,4,0]} 1. d4 {[%emt 0:00:06]} Nf6 {[%emt 0:00:03]} 2. c4 {[%emt 0:00:08]} e6 {[%emt 0:00:02]} 3. Nc3 {[%emt 0:00:11]} d5 {[%emt 0:00:03]} 4. Bg5 {[%emt 0:03:09]} Be7 {[%emt 0:02:50]} 5. e3 {[%emt 0:01:09]} O-O {[%emt 0:00:47]} 6. Nf3 {[%emt 0:00:16]} h6 {[%emt 0:00:11]} 7. Bh4 {[%emt 0:00:56]} b6 {[%emt 0:00:27]} 8. Bd3 {[%emt 0:02:19]} Nbd7 {[%emt 0:05:48] The position is equal.} 9. cxd5 {[%emt 0:03:04]} Nxd5 {[%emt 0:00:06]} 10. Nxd5 {[%emt 0:03:35]} Bxh4 {[%emt 0:00:18]} 11. Nxh4 {[%emt 0:00:38][%cal Oh4g6]} exd5 {[%emt 0:00:04]} 12. Nf3 {[%emt 0:00:26]} c5 {[%emt 0:01:56]} 13. b3 {[%emt 0:02:44]} Nf6 {[%emt 0:08:25]} 14. Ne5 {[%emt 0:05:03]} Nd7 {[%emt 0:03:47]} 15. Nf3 {[%emt 0:00:24]} Nf6 {[%emt 0:00:31]} 16. Ne5 {[%emt 0:00:07]} Nd7 {[%emt 0:09:55]} 17. Nf3 {[%emt 0:01:25] A rather calm draw.   Weighted Error Value: White=0.05 (flawless) /Black=0.01 (flawless) .  OK:         	White=2     	Black=4      Best:        	---       	Black=1} 1/2-1/2

[Event "German Bundesliga 2023-24"]
[Site "Germany"]
[Date "2024.02.25"]
[Round "11.21"]
[White "Keymer, Vincent"]
[Black "Zilka, Stepan"]
[Result "1-0"]
[ECO "D32"]
[WhiteElo "2721"]
[BlackElo "2599"]
[Annotator "TA"]
[PlyCount "65"]
[EventDate "2023.10.20"]
[EventType "team-tourn"]
[EventCountry "GER"]
[SourceTitle "playchess.com"]
[Source "ChessBase"]
[SourceQuality "1"]
[TimeControl "40/6000+30:3000+30"]

{[%evp 21,65,20,29,14,27,18,68,73,69,75,122,119,126,125,122,126,125,126,121,129,129,129,133,134,165,164,205,218,239,175,287,287,259,274,337,283,322,327,379,373,408,391,405,405,389,383]} 1. d4 {[%emt 0:00:09]} d5 {[%emt 0:00:30]} 2. c4 {[%emt 0:00:22]} e6 {[%emt 0:00:00]} 3. Nc3 {[%emt 0:00:07]} Nf6 {[%emt 0:00:00]} 4. Nf3 {[%emt 0:00:09]} c5 {[%emt 0:00:35]} 5. e3 {[%emt 0:03:01]} Nc6 {[%emt 0:01:43]} 6. cxd5 {[%emt 0:07:16]} exd5 {[%emt 0:01:06]} 7. Bb5 {[%emt 0:00:21]} Bd6 {[%emt 0:05:00]} 8. dxc5 {[%emt 0:01:21]} Bxc5 {[%emt 0:00:04]} 9. O-O {[%emt 0:02:13]} O-O {[%emt 0:00:26]} 10. b3 {[%emt 0:05:47]} a6 {[%emt 0:02:51]} 11. Bxc6 {[%emt 0:01:06]} bxc6 {[%emt 0:00:10]} 12. Bb2 {[%emt 0:00:05]} Bd6 {[%emt 0:08:19]} 13. Rc1 {[%emt 0:02:04]} c5 {[%emt 0:05:33]} (13... Re8 $11) 14. Na4 $14 {[%emt 0:14:40] White is slightly better.} Ne4 {[%emt 0:02:11]} 15. Nd2 $1 {[%emt 0:00:43]} (15. Qxd5 $2 {too greedy.} Bxh2+ 16. Nxh2 Qxd5 $19) 15... Qc7 {[%emt 0:49:12]} (15... Qe7 $142) 16. Nxe4 $16 {[%emt 0:11:10]} dxe4 {[%emt 0:00:06]} 17. Qh5 {[%emt 0:00:03]} f5 {[%emt 0:07:39] [#]} 18. Nxc5 $1 {[%emt 0:00:47][%mdl 512] White is more active.} Bxc5 {[%emt 0:05:33]} 19. Bd4 {[%emt 0:01:48]} Qf7 {[%emt 0:00:06]} 20. Qxf7+ {[%emt 0:00:05]} Rxf7 {[%emt 0:00:12]} 21. Rxc5 {[%emt 0:00:10]} Bd7 {[%emt 0:02:38]} 22. Rfc1 {[%emt 0:01:15]} h6 {[%emt 0:00:58]} 23. h4 {[%emt 0:02:59]} g5 {[%emt 0:00:19][%cal Bg7g5,Bg5h4][%mdl 32]} 24. Rd5 {[%emt 0:00:52]} gxh4 {[%emt 0:02:38]} 25. Rd6 {[%emt 0:00:50]} Kh7 {[%emt 0:07:09]} (25... Rc8 $142 26. Rxc8+ Bxc8 27. Rxh6 Rh7) 26. Rc7 {[%emt 0:00:51]} Be8 {[%emt 0:00:01]} 27. Rc5 {[%emt 0:00:06]} Bd7 {[%emt 0:01:08]} 28. Kh2 {[%emt 0:02:13]} h3 {[%emt 0:01:44]} 29. Kxh3 {[%emt 0:02:03]} ({Don't do} 29. gxh3 Be8 30. Re5 f4 $18) 29... f4+ {[%emt 0:00:20]} 30. Kh2 {[%emt 0:00:05] [#] Rh5 would now be deadly. White is winning.} Rg8 {[%emt 0:03:35]} 31. Rc7 {[%emt 0:01:44]} Be8 {[%emt 0:00:50]} 32. Rxf7+ {[%emt 0:00:05]} Bxf7 {[%emt 0:00:02]} 33. exf4 {[%emt 0:00:05] White took control after the opening.   Weighted Error Value: White=0.06 (flawless) /Black=0.27 (precise) .  Mistake:       	---       	Black=3      OK:         	White=15    	Black=4      Best:        	White=1     	Black=1      Strong:       	White=1     	---} 1-0